Workbook

Sheet Info & Summary
A1: Instrument Information:
A3: Instrument Type | C3: Serial Number | E3: Instrument Name
A4: HPD | C4: enter S/N | E4: enter name
A6: Current Calibration Summary:
A8: Pressure Cells
B9: TPC A | D9: TPC B
A10: ='Current Calibrations'!A64 -> Intercept | B10: ='Current Calibrations'!B64 -> 133.7840295 | C10: ='Current Calibrations'!C64 -> mV | D10: ='Current Calibrations'!E64 -> -1625.679361 | E10: ='Current Calibrations'!F64 -> mV
A11: ='Current Calibrations'!A65 -> Slope | B11: ='Current Calibrations'!B65 -> 6.53491769 | C11: ='Current Calibrations'!C65 -> mV/Bars | D11: ='Current Calibrations'!E65 -> 6.485383292 | E11: ='Current Calibrations'!F65 -> mV/Bars
A12: ='Current Calibrations'!A66 -> Slope | B12: ='Current Calibrations'!B66 -> 65.3491769 | C12: ='Current Calibrations'!C66 -> mV/MPa | D12: ='Current Calibrations'!E66 -> 64.85383292 | E12: ='Current Calibrations'!F66 -> mV/MPa
A13: Arm Springs
B14: Arm 1 | D14: Arm 2 | F14: Arm 3 | H14: Arm 4 | J14: Arm 5 | L14: Arm 6
A15: ='Current Calibrations'!A32 -> Intercept | B15: ='Current Calibrations'!B32 -> -1590.48231 | C15: ='Current Calibrations'!C32 -> mV | D15: ='Current Calibrations'!E32 -> -2116.594103 | E15: ='Current Calibrations'!F32 -> mV | F15: ='Current Calibrations'!H32 -> -1621.855528 | G15: ='Current Calibrations'!I32 -> mV | H15: ='Current Calibrations'!K32 -> -1708.121867 | I15: ='Current Calibrations'!L32 -> mV | J15: ='Current Calibrations'!N32 -> -1887.288698 | K15: ='Current Calibrations'!O32 -> mV | L15: ='Current Calibrations'!Q32 -> -1554.743243 | M15: ='Current Calibrations'!R32 -> mV
A16: ='Current Calibrations'!A33 -> Slope | B16: ='Current Calibrations'!B33 -> 128.7611425 | C16: ='Current Calibrations'!C33 -> mV/mm | D16: ='Current Calibrations'!E33 -> 131.1103808 | E16: ='Current Calibrations'!F33 -> mV/mm | F16: ='Current Calibrations'!H33 -> 126.6018305 | G16: ='Current Calibrations'!I33 -> mV/mm | H16: ='Current Calibrations'!K33 -> 127.4737961 | I16: ='Current Calibrations'!L33 -> mV/mm | J16: ='Current Calibrations'!N33 -> 124.0278133 | K16: ='Current Calibrations'!O33 -> mV/mm | L16: ='Current Calibrations'!Q33 -> 129.6255405 | M16: ='Current Calibrations'!R33 -> mV/mm

Sheet Current Calibrations
A1: Calibration Date | C1: Operator | E1: Instrument Type | G1: Serial Number | I1: Instrument Name
E2: ='Info & Summary'!A4 -> HPD | G2: ='Info & Summary'!C4 -> enter S/N | I2: ='Info & Summary'!E4 -> enter name
A3: Notes:
A7: Arm Springs
A9: mm | B9: Arm 1 | C9: Linearity | D9: Hysteresis | E9: Arm 2 | F9: Linearity | G9: Hysteresis | H9: Arm 3 | I9: Linearity | J9: Hysteresis | K9: Arm 4 | L9: Linearity | M9: Hysteresis | N9: Arm 5 | O9: Linearity | P9: Hysteresis | Q9: Arm 6 | R9: Linearity | S9: Hysteresis
B10: (mV) | C10: (%) | D10: (%) | E10: (mV) | F10: (%) | G10: (%) | H10: (mV) | I10: (%) | J10: (%) | K10: (mV) | L10: (%) | M10: (%) | N10: (mV) | O10: (%) | P10: (%) | Q10: (mV) | R10: (%) | S10: (%)
A11: 0 | B11: -1616.5 | C11: =(B12-B11)*50/B$33 -> 109.7380757 | D11: =(B11-B31)*100/(B$21-B$11) -> 0.1358590172 | E11: -2139.5 | F11: =(E12-E11)*50/E$33 -> 108.9158609 | G11: =(E11-E31)*100/(E$21-E$11) -> 0.02662305557 | H11: -1637.4 | I11: =(H12-H11)*50/H$33 -> 105.2907367 | J11: =(H11-H31)*100/(H$21-H$11) -> 0.1028318304 | K11: -1721.7 | L11: =(K12-K11)*50/K$33 -> 103.9821548 | M11: =(K11-K31)*100/(K$21-K$11) -> -0.01176655162 | N11: -1914.1 | O11: =(N12-N11)*50/N$33 -> 108.967494 | P11: =(N11-N31)*100/(N$21-N$11) -> 0.03622750875 | Q11: -1578.3 | R11: =(Q12-Q11)*50/Q$33 -> 108.427706 | S11: =(Q11-Q31)*100/(Q$21-Q$11) -> -0.06162853401
A12: 2 | B12: -1333.9 | C12: 103.0590421 | D12: =(B12-B30)*100/(B$21-B$11) -> 0.03493517584 | E12: -1853.9 | F12: 102.0132801 | G12: =(E12-E30)*100/(E$21-E$11) -> -0.06845928574 | H12: -1370.8 | I12: 101.8547674 | J12: =(H12-H30)*100/(H$21-H$11) -> 0 | K12: -1456.6 | L12: 102.4132049 | M12: =(K12-K30)*100/(K$21-K$11) -> -0.1294320678 | N12: -1643.8 | O12: 103.4042257 | P12: =(N12-N30)*100/(N$21-N$11) -> 0.06037918126 | Q12: -1297.2 | R12: 101.7160657 | S12: =(Q12-Q30)*100/(Q$21-Q$11) -> -0.05777675064
A13: 4 | B13: -1068.5 | C13: 101.5834416 | D13: =(B13-B29)*100/(B$21-B$11) -> 0.07763372409 | E13: -1586.4 | F13: 100.9454775 | G13: =(E13-E29)*100/(E$21-E$11) -> -0.05704940478 | H13: -1112.9 | I13: 101.4598284 | J13: =(H13-H29)*100/(H$21-H$11) -> -0.0039550704 | K13: -1195.5 | L13: 100.844255 | M13: =(K13-K29)*100/(K$21-K$11) -> -0.003922183872 | N13: -1387.3 | O13: 105.218335 | P13: =(N13-N29)*100/(N$21-N$11) -> 0.008050557501 | Q13: -1033.5 | R13: 101.9089289 | S13: =(Q13-Q29)*100/(Q$21-Q$11) -> -0.1271088514
A14: 6 | B14: -806.9 | C14: 100.8068098 | D14: =(B14-B28)*100/(B$21-B$11) -> 0.04658023445 | E14: -1321.7 | F14: 99.95394656 | G14: =(E14-E28)*100/(E$21-E$11) -> -0.03803293652 | H14: -856 | I14: 101.1043833 | J14: =(H14-H28)*100/(H$21-H$11) -> 0.0237304224 | K14: -938.4 | L14: 101.00115 | M14: =(K14-K28)*100/(K$21-K$11) -> -0.003922183872 | N14: -1126.3 | O14: 99.17130421 | P14: =(N14-N28)*100/(N$21-N$11) -> 0.1650364288 | Q14: -769.3 | R14: 100.597459 | S14: =(Q14-Q28)*100/(Q$21-Q$11) -> -0.06548031739
A15: 8 | B15: -547.3 | C15: 99.68069365 | D15: =(B15-B27)*100/(B$21-B$11) -> 0.1086872137 | E15: -1059.6 | F15: 99.87767495 | G15: =(E15-E27)*100/(E$21-E$11) -> -0.01901646826 | H15: -600 | I15: 100.2750115 | J15: =(H15-H27)*100/(H$21-H$11) -> 0.0316405632 | K15: -680.9 | L15: 100.0597801 | M15: =(K15-K27)*100/(K$21-K$11) -> 0.05883275808 | N15: -880.3 | O15: 99.49381252 | P15: =(N15-N27)*100/(N$21-N$11) -> -0.01207583625 | Q15: -508.5 | R15: 100.1731599 | S15: =(Q15-Q27)*100/(Q$21-Q$11) -> -0.05777675064
A16: 10 | B16: -290.6 | C16: 99.40887251 | D16: =(B16-B26)*100/(B$21-B$11) -> 0.07763372409 | E16: -797.7 | F16: 99.00055142 | G16: =(E16-E26)*100/(E$21-E$11) -> -0.03042634922 | H16: -346.1 | I16: 98.45829206 | J16: =(H16-H26)*100/(H$21-H$11) -> 0.0316405632 | K16: -425.8 | L16: 99.35375262 | M16: =(K16-K26)*100/(K$21-K$11) -> 0.0705993097 | N16: -633.5 | O16: 98.8487959 | P16: =(N16-N26)*100/(N$21-N$11) -> -0.01207583625 | Q16: -248.8 | R16: 99.44027964 | S16: =(Q16-Q26)*100/(Q$21-Q$11) -> -0.007703566751
A17: 12 | B17: -34.6 | C17: 98.24392479 | D17: =(B17-B25)*100/(B$21-B$11) -> 0.04658023445 | E17: -538.1 | F17: 98.50478595 | G17: =(E17-E25)*100/(E$21-E$11) -> 0 | H17: -96.8 | I17: 99.48513346 | J17: =(H17-H25)*100/(H$21-H$11) -> 0.0237304224 | K17: -172.5 | L17: 98.56927767 | M17: =(K17-K25)*100/(K$21-K$11) -> 0.05098839034 | N17: -388.3 | O17: 96.26872945 | P17: =(N17-N25)*100/(N$21-N$11) -> 0.03622750875 | Q17: 9 | R17: 98.28310028 | S17: =(Q17-Q25)*100/(Q$21-Q$11) -> -0.02311070025
A18: 14 | B18: 218.4 | C18: 96.65182956 | D18: =(B18-B24)*100/(B$21-B$11) -> 0.003881686204 | E18: -279.8 | F18: 98.12342789 | G18: =(E18-E24)*100/(E$21-E$11) -> -0.0798691667 | H18: 155.1 | I18: 97.98436527 | J18: =(H18-H24)*100/(H$21-H$11) -> 0.019775352 | K18: 78.8 | L18: 98.56927767 | M18: =(K18-K24)*100/(K$21-K$11) -> 0.007844367744 | N18: -149.5 | O18: 97.27656791 | P18: =(N18-N24)*100/(N$21-N$11) -> -0.1086825263 | Q18: 263.8 | R18: 97.2802115 | S18: =(Q18-Q24)*100/(Q$21-Q$11) -> -0.03081426701
A19: 16 | B19: 467.3 | C19: 95.68103979 | D19: =(B19-B23)*100/(B$21-B$11) -> -0.03881686204 | E19: -22.5 | F19: 97.93274887 | G19: =(E19-E23)*100/(E$21-E$11) -> -0.1140988096 | H19: 403.2 | I19: 96.91802997 | J19: =(H19-H23)*100/(H$21-H$11) -> -0.0158202816 | K19: 330.1 | L19: 97.94169771 | M19: =(K19-K23)*100/(K$21-K$11) -> -0.02353310323 | N19: 91.8 | O19: 96.67186483 | P19: =(N19-N23)*100/(N$21-N$11) -> -0.1046572475 | Q19: 516 | R19: 97.01020299 | S19: =(Q19-Q23)*100/(Q$21-Q$11) -> -0.05777675064
A20: 18 | B20: 713.7 | C20: 95.52571343 | D20: =(B20-B22)*100/(B$21-B$11) -> -0.1125688999 | E20: 234.3 | F20: 97.43698339 | G20: =(E20-E22)*100/(E$21-E$11) -> -0.1369185715 | H20: 648.6 | I20: 95.73321298 | J20: =(H20-H22)*100/(H$21-H$11) -> -0.07910140801 | K20: 579.8 | L20: 97.31411774 | M20: =(K20-K22)*100/(K$21-K$11) -> -0.08236586131 | N20: 331.6 | O20: 96.18810238 | P20: =(N20-N22)*100/(N$21-N$11) -> -0.1368594775 | Q20: 767.5 | R20: 96.58590389 | S20: =(Q20-Q22)*100/(Q$21-Q$11) -> -0.1348124181
A21: 20 | B21: 959.7 | C21: -94.3995973 | E21: 489.8 | F21: -96.06409439 | H21: 891 | I21: -94.94333499 | K21: 827.9 | L21: -96.49041905 | N21: 570.2 | O21: -94.81744207 | Q21: 1017.9 | R21: -95.2358613
A22: 18 | B22: 716.6 | C22: -96.41884002 | E22: 237.9 | F22: -98.1615637 | H22: 650.6 | I22: -97.54993237 | K22: 581.9 | L22: -98.53005392 | N22: 335 | O22: -96.99437314 | Q22: 771 | R22: -97.78165589
A23: 16 | B23: 468.3 | C23: -97.07897706 | E23: -19.5 | F23: -98.46665014 | H23: 403.6 | I23: -98.33981037 | K23: 330.7 | L23: -98.88306765 | N23: 94.4 | O23: -97.23625437 | Q23: 517.5 | R23: -97.55022002
A24: 14 | B24: 218.3 | C24: -98.67107229 | E24: -277.7 | F24: -99.30563787 | H24: 154.6 | I24: -99.52462736 | K24: 78.6 | L24: -99.00073889 | N24: -146.8 | O24: -97.72001683 | Q24: 264.6 | R24: -98.36024557
A25: 12 | B25: -35.8 | C25: -99.71952524 | E25: -538.1 | F25: -98.69546498 | H25: -97.4 | I25: -98.53727986 | K25: -173.8 | L25: -99.54987136 | N25: -389.2 | O25: -98.36503344 | Q25: 9.6 | R25: -99.59457022
A26: 10 | B26: -292.6 | C26: -99.99134638 | E26: -796.9 | F26: -99.99208237 | H26: -346.9 | I26: -100.2750115 | K26: -427.6 | L26: -99.94210883 | N26: -633.2 | O26: -99.49381252 | Q26: -248.6 | R26: -99.67171551
A27: 8 | B27: -550.1 | C27: -100.1855043 | E27: -1059.1 | F27: -99.76326754 | H27: -600.8 | I27: -101.0253955 | K27: -682.4 | L27: -100.3735701 | N27: -880 | O27: -100.9450999 | Q27: -507 | R27: -100.5203137
A28: 6 | B28: -808.1 | C28: -101.8940943 | E28: -1320.7 | F28: -100.7547985 | H28: -856.6 | I28: -101.1833711 | K28: -938.3 | L28: -100.844255 | N28: -1130.4 | O28: -103.646107 | Q28: -767.6 | R28: -101.2917666
A29: 4 | B29: -1070.5 | C29: -102.6318946 | E29: -1584.9 | F29: -101.8988727 | H29: -1112.8 | I29: -101.8942613 | K29: -1195.4 | L29: -101.158045 | N29: -1387.5 | O29: -103.9283017 | Q29: -1030.2 | R29: -102.4103733
A30: 2 | B30: -1334.8 | C30: -110.747697 | E30: -1852.1 | F30: -109.869256 | H30: -1370.8 | I30: -106.3175781 | K30: -1453.3 | L30: -105.1588673 | N30: -1645.3 | O30: -108.7256128 | Q30: -1295.7 | R30: -108.3891334
A31: 0 | B31: -1620 | E31: -2140.2 | H31: -1640 | K31: -1721.4 | N31: -1915 | Q31: -1576.7
A32: Intercept | B32: =INTERCEPT(B$11:B$31,$A$11:$A$31) -> -1590.48231 | C32: mV | E32: =INTERCEPT(E$11:E$31,$A$11:$A$31) -> -2116.594103 | F32: mV | H32: =INTERCEPT(H$11:H$31,$A$11:$A$31) -> -1621.855528 | I32: mV | K32: =INTERCEPT(K$11:K$31,$A$11:$A$31) -> -1708.121867 | L32: mV | N32: =INTERCEPT(N$11:N$31,$A$11:$A$31) -> -1887.288698 | O32: mV | Q32: =INTERCEPT(Q$11:Q$31,$A$11:$A$31) -> -1554.743243 | R32: mV
A33: Slope | B33: =SLOPE(B$11:B$31,$A$11:$A$31) -> 128.7611425 | C33: mV/mm | E33: =SLOPE(E$11:E$31,$A$11:$A$31) -> 131.1103808 | F33: mV/mm | H33: =SLOPE(H$11:H$31,$A$11:$A$31) -> 126.6018305 | I33: mV/mm | K33: =SLOPE(K$11:K$31,$A$11:$A$31) -> 127.4737961 | L33: mV/mm | N33: =SLOPE(N$11:N$31,$A$11:$A$31) -> 124.0278133 | O33: mV/mm | Q33: =SLOPE(Q$11:Q$31,$A$11:$A$31) -> 129.6255405 | R33: mV/mm
A35: Max Output | C35: mV | F35: mV | I35: mV | L35: mV | O35: mV | R35: mV
A36: Min Output | C36: mV | F36: mV | I36: mV | L36: mV | O36: mV | R36: mV
A37: Max Range | C37: mm | F37: mm | I37: mm | L37: mm | O37: mm | R37: mm
A39: Pressure Cells
A41: Bars | B41: TPC A | C41: Linearity | D41: Hysteresis | E41: TPC B | F41: Linearity | G41: Hysteresis
B42: (mV) | C42: (%) | D42: (%) | E42: (mV) | F42: (%) | G42: (%)
A43: 0 | B43: 129.6 | C43: =(B44-B43)*100/(B$65*($A44-$A43)) -> 105.7396639 | D43: =(B43-B63)*100/(B$53-B$43) -> -0.06099420555 | E43: -1628.7 | F43: =(E44-E43)*100/(E$65*($A44-$A43)) -> 105.6221304 | G43: =(E43-E63)*100/(E$53-E$43) -> 0.01537515375
A44: 20 | B44: 267.8 | C44: 97.01728928 | D44: =(B44-B62)*100/(B$53-B$43) -> -0.1372369625 | E44: -1491.7 | F44: 95.05991739 | G44: =(E44-E62)*100/(E$53-E$43) -> -0.2229397294
A45: 40 | B45: 394.6 | C45: 99.31265101 | D45: =(B45-B61)*100/(B$53-B$43) -> -0.2516010979 | E45: -1368.4 | F45: 99.146029 | G45: =(E45-E61)*100/(E$53-E$43) -> -0.3613161132
A46: 60 | B46: 524.4 | C46: 99.54218719 | D46: =(B46-B60)*100/(B$53-B$43) -> -0.1601097896 | E46: -1239.8 | F46: 99.37731834 | G46: =(E46-E60)*100/(E$53-E$43) -> -0.307503075
A47: 80 | B47: 654.5 | C47: 99.6952113 | D47: =(B47-B59)*100/(B$53-B$43) -> -0.2668496493 | E47: -1110.9 | F47: 99.53151123 | G47: =(E47-E59)*100/(E$53-E$43) -> -0.4228167282
A48: 100 | B48: 784.8 | C48: 100.4603319 | D48: =(B48-B58)*100/(B$53-B$43) -> -0.3125953034 | E48: -981.8 | F48: 100.9963437 | G48: =(E48-E58)*100/(E$53-E$43) -> -0.5611931119
A49: 120 | B49: 916.1 | C49: 101.0724283 | D49: =(B49-B57)*100/(B$53-B$43) -> -0.2897224764 | E49: -850.8 | F49: 101.5360188 | G49: =(E49-E57)*100/(E$53-E$43) -> -0.4843173432
A50: 140 | B50: 1048.2 | C50: 99.84823542 | D50: =(B50-B56)*100/(B$53-B$43) -> -0.02287282708 | E50: -719.1 | F50: 99.91699346 | G50: =(E50-E56)*100/(E$53-E$43) -> -0.1998769988
A51: 160 | B51: 1178.7 | C51: 100.5368439 | D51: =(B51-B55)*100/(B$53-B$43) -> -0.03049710278 | E51: -589.5 | F51: 100.9192473 | G51: =(E51-E55)*100/(E$53-E$43) -> -0.2229397294
A52: 180 | B52: 1310.1 | C52: 100.3073078 | D52: =(B52-B54)*100/(B$53-B$43) -> -0.03049710278 | E52: -458.6 | F52: 100.7650544 | G52: =(E52-E54)*100/(E$53-E$43) -> -0.1537515375
A53: 200 | B53: 1441.2 | C53: 100.0012595 | E53: -327.9 | F53: 99.22312545
A54: 180 | B54: 1310.5 | C54: 100.5368439 | E54: -456.6 | F54: 100.2253792
A55: 160 | B55: 1179.1 | C55: 99.92474748 | E55: -586.6 | F55: 100.1482828
A56: 140 | B56: 1048.5 | C56: 98.39450632 | E56: -716.5 | F56: 98.68345033
A57: 120 | B57: 919.9 | C57: 100.2307957 | E57: -844.5 | F57: 100.2253792
A58: 100 | B58: 788.9 | C58: 100.1542837 | E58: -974.5 | F58: 100.9192473
A59: 80 | B59: 658 | C59: 100.613356 | E59: -1105.4 | F59: 100.533765
A60: 60 | B60: 526.5 | C60: 98.39450632 | E60: -1235.8 | F60: 98.60635388
A61: 40 | B61: 397.9 | C61: 98.16497015 | E61: -1363.7 | F61: 96.44765341
A62: 20 | B62: 269.6 | C62: 106.5047844 | E62: -1488.8 | F62: 108.0121202
A63: 0 | B63: 130.4 | E63: -1628.9
A64: Intercept | B64: =INTERCEPT(B43:B63,$A43:$A63) -> 133.7840295 | C64: mV | E64: =INTERCEPT(E43:E63,$A43:$A63) -> -1625.679361 | F64: mV
A65: Slope | B65: =SLOPE(B43:B63,$A43:$A63) -> 6.53491769 | C65: mV/Bars | E65: =SLOPE(E43:E63,$A43:$A63) -> 6.485383292 | F65: mV/Bars
A66: Slope | B66: =SLOPE(B43:B63,$A43:$A63)*10 -> 65.3491769 | C66: mV/MPa | E66: =SLOPE(E43:E63,$A43:$A63)*10 -> 64.85383292 | F66: mV/MPa
A68: Do Not Enter Text Below This Line. | E68: Do Not Enter Text Below This Line. | I68: Do Not Enter Text Below This Line. | M68: Do Not Enter Text Below This Line. | Q68: Do Not Enter Text Below This Line.
A80: mm | B80: Arm 1 | C80: Arm 2 | D80: Arm 3 | E80: Arm 4 | F80: Arm 5 | G80: Arm 6
A81: Plot? | B81: FALSE | C81: FALSE | D81: FALSE | E81: FALSE | F81: FALSE | G81: FALSE
A82: 0 | B82: =IF(B$81=TRUE, B11, #N/A) ->  | C82: =IF(C$81=TRUE, E11, #N/A) ->  | D82: =IF(D$81=TRUE, H11, #N/A) ->  | E82: =IF(E$81=TRUE, K11, #N/A) ->  | F82: =IF(F$81=TRUE, N11, #N/A) ->  | G82: =IF(G$81=TRUE, Q11, #N/A) -> 
A83: 2
A84: 4
A85: 6
A86: 8
A87: 10
A88: 12
A89: 14
A90: 16
A91: 18
A92: 20
A93: 18
A94: 16
A95: 14
A96: 12
A97: 10
A98: 8
A99: 6
A100: 4
A101: 2
A102: 0
